fUST/lending_fUST_20250312
["ID","MTS","AMOUNT","RATE_DAILY","PERIOD"]
[356005000,1741792260682,-1787.17,0.00023013,2]
[356005001,1741792260692,-825.75,0.00023013,2]
[356005002,1741792260701,-500.0,0.00023013,2]
[356005003,1741792260807,-500.0,0.00023013,2]
[356005004,1741792260817,-500.0,0.00023013,2]
[356005005,1741792260827,-500.0,0.00023013,2]
[356005006,1741792260836,-516.68,0.00023013,2]
[356005007,1741792260851,-500.0,0.00023013,2]
[356005008,1741792260862,-1187.34,0.00023013,2]
[356005009,1741792260872,-500.0,0.00023013,2]
[356005010,1741792260881,-500.0,0.00023013,2]
[356005011,1741792260891,-729.37,0.00023013,2]
[356005012,1741792260900,-249.28812342,0.00023013,2]
[356005013,1741792260909,-1008.35,0.00023013,2]
[356005014,1741792260919,-969.36,0.00023013,2]
[356005015,1741792260929,-500.0,0.00023013,2]
[356005016,1741792260939,-500.0,0.00023013,2]
[356005017,1741792260948,-500.0,0.00023013,2]
[356005018,1741792260958,-1564.59,0.00023013,2]
[356005019,1741792260968,-693.24,0.00023013,2]
[356005020,1741792260978,-500.0,0.00023013,2]
[356005021,1741792260987,-1314.1,0.00023013,2]
[356005022,1741792260996,-1096.4,0.00023013,2]
[356005023,1741792261006,-565.33931414,0.00023013,2]
[356005024,1741792261016,-500.0,0.00023013,2]
[356005025,1741792261025,-500.0,0.00023013,2]
[356005026,1741792261035,-500.0,0.00023013,2]
[356005027,1741792261045,-1528.25,0.00023013,2]
[356005028,1741792261054,-1303.06,0.00023013,2]
[356005029,1741792261064,-500.0,0.00023013,2]
[356005030,1741792261074,-500.0,0.00023013,2]
[356005031,1741792261084,-500.0,0.00023013,2]
[356005032,1741792261096,-568.06,0.00023013,2]
[356005033,1741792261105,-500.0,0.00023013,2]
[356005034,1741792261116,-2094.41,0.00023013,2]
[356005035,1741792261125,-1765.23,0.00023013,2]
[356005036,1741792261135,-510.76588915,0.00023013,2]
[356005037,1741792261144,-1840.33,0.00023013,2]
[356005038,1741792261154,-500.0,0.00023013,2]
[356005039,1741792261164,-500.0,0.00023013,2]
[356005040,1741792261174,-1707.8,0.00023013,2]
[356005041,1741792261183,-17448.18,0.00023013,2]
[356005042,1741792261193,-500.0,0.00023013,2]
[356005043,1741792261203,-500.0,0.00023013,2]
[356005044,1741792261213,-500.0,0.00023013,2]
[356005045,1741792261222,-500.0,0.00023013,2]
[356005046,1741792261232,-871.73,0.00023013,2]
[356005047,1741792261242,-17540.73,0.00023013,2]
[356005048,1741792261252,-1257.96,0.00023013,2]
[356005049,1741792261262,-500.0,0.00023013,2]
[356005050,1741792261271,-987.72,0.00023013,2]
[356005051,1741792261281,-500.0,0.00023013,2]
[356005052,1741792261290,-500.0,0.00023013,2]
[356005053,1741792261299,-500.0,0.00023013,2]
[356005054,1741792261309,-500.0,0.00023013,2]
[356005055,1741792261319,-500.0,0.00023013,2]
[356005056,1741792261329,-1653.89,0.00023013,2]
[356005057,1741792261338,-500.0,0.00023013,2]
[356005058,1741792261353,-500.0,0.00023013,2]
[356005059,1741792261363,-2588.87,0.00023013,2]
[356005060,1741792261372,-500.0,0.00023013,2]
[356005061,1741792261382,-263.08925162,0.00023013,2]
[356005062,1741792261392,-548.36,0.00023013,2]
[356005063,1741792261402,-554.68,0.00023013,2]
[356005064,1741792261411,-500.0,0.00023013,2]
[356005065,1741792261421,-500.0,0.00023013,2]
[356005066,1741792261432,-520.21658921,0.00023013,2]
[356005067,1741792261442,-500.0,0.00023013,2]
[356005068,1741792261451,-500.0,0.00023013,2]
[356005069,1741792261462,-5475.63,0.00023013,2]
[356005070,1741792261471,-1148.17,0.00023013,2]
[356005071,1741792261480,-1852.08,0.00023013,2]
[356005072,1741792261489,-500.0,0.00023013,2]
[356005073,1741792261499,-500.0,0.00023013,2]
[356005074,1741792261508,-2754.36,0.00023013,2]
[356005075,1741792261518,-500.0,0.00023013,2]
[356005076,1741792261528,-1284.32,0.00023013,2]
[356005077,1741792261537,-2933.77,0.00023013,2]
[356005078,1741792261547,-1000.0,0.00023013,7]
[356005079,1741792261556,-500.0,0.00023013,2]
[356005080,1741792261566,-1749.18,0.00023013,2]
[356005081,1741792261575,-500.0,0.00023013,2]
[356005082,1741792261584,-658.79,0.00023013,2]
[356005083,1741792261598,-2372.18,0.00023013,2]
[356005084,1741792261608,-1346.07,0.00023013,2]
[356005085,1741792261618,-1076.37,0.00023013,2]
[356005086,1741792261627,-500.0,0.00023013,2]
[356005087,1741792261637,-3256.1,0.00023013,2]
[356005088,1741792261646,-500.0,0.00023013,2]
[356005089,1741792261656,-500.0,0.00023013,2]
[356005090,1741792261666,-292.10565352,0.00023013,2]
[356005091,1741792261676,-965.8,0.00023013,2]
[356005092,1741792261686,-1108.13,0.00023013,2]
[356005093,1741792261695,-1485.46,0.00023013,2]
[356005094,1741792261705,-500.0,0.00023013,2]
[356005095,1741792261715,-878.94,0.00023013,2]
[356005096,1741792261725,-2094.2,0.00023013,2]
[356005097,1741792261735,-500.0,0.00023013,2]
[356005098,1741792261747,-515.03,0.00023013,2]
[356005099,1741792261757,-840.71,0.00023013,2]
[356005100,1741792261767,-970.17,0.00023013,2]
[356005101,1741792261776,-847.81,0.00023013,2]
[356005102,1741792261787,-500.0,0.00023013,2]
[356005103,1741792261797,-1327.16,0.00023013,2]
[356005104,1741792261806,-500.0,0.00023013,2]
[356005105,1741792261816,-526.83,0.00023013,2]
[356005106,1741792261827,-500.0,0.00023013,2]
[356005107,1741792261839,-500.0,0.00023013,2]
[356005108,1741792261855,-1248.88,0.00023013,2]
[356005109,1741792261866,-500.0,0.00023013,2]
[356005110,1741792261876,-1128.61,0.00023013,2]
[356005111,1741792261889,-2266.88,0.00023013,2]
[356005112,1741792261900,-500.0,0.00023013,2]
[356005113,1741792261910,-1792.9,0.00023013,2]
[356005114,1741792261923,-500.0,0.00023013,2]
[356005115,1741792261933,-500.0,0.00023013,2]
[356005116,1741792261943,-500.0,0.00023013,2]
[356005117,1741792261953,-508.17,0.00023013,2]
[356005118,1741792261962,-1624.2,0.00023013,2]
[356005119,1741792261972,-500.0,0.00023013,2]
[356005120,1741792261981,-500.0,0.00023013,2]
[356005121,1741792261992,-500.0,0.00023013,2]
[356005122,1741792262001,-1010.75,0.00023013,2]
[356005123,1741792262010,-500.0,0.00023013,2]
[356005124,1741792262020,-500.0,0.00023013,2]
[356005125,1741792262030,-4236.3,0.00023013,2]
[356005126,1741792262039,-9999.0,0.00023013,2]
[356005127,1741792262049,-500.0,0.00023013,2]
[356005128,1741792262058,-1158.76,0.00023013,2]
[356005129,1741792262068,-500.0,0.00023013,2]
[356005130,1741792262077,-2902.09,0.00023013,2]
[356005131,1741792262087,-500.0,0.00023013,2]
[356005132,1741792262100,-526.29193702,0.00023013,2]
[356005133,1741792262109,-500.0,0.00023013,2]
[356005134,1741792262119,-500.0,0.00023013,2]
[356005135,1741792262129,-500.0,0.00023013,2]
[356005136,1741792262139,-250.0,0.00023021,2]
[356005137,1741792262149,-226.433792,0.00023118,2]
[356005138,1741792262159,-500.0,0.00023287,2]
[356005139,1741792262169,-500.0,0.00023287,2]
[356005140,1741792262179,-500.0,0.00023287,2]
[356005141,1741792262188,-500.0,0.00023287,2]
[356005142,1741792262197,-500.0,0.00023287,2]
[356005143,1741792262207,-500.0,0.00023287,2]
[356005144,1741792262217,-500.0,0.00023287,2]
[356005145,1741792262226,-500.0,0.00023287,2]
[356005146,1741792262236,-500.0,0.00023287,2]
[356005147,1741792262245,-500.0,0.00023287,2]
[356005148,1741792262346,-500.0,0.00023287,2]
[356005149,1741792262356,-500.0,0.00023287,2]
[356005150,1741792262366,-500.0,0.00023287,2]
[356005151,1741792262377,-538.35,0.00023287,2]
[356005152,1741792262387,-500.0,0.00023287,2]
[356005153,1741792262396,-500.0,0.00023287,2]
[356005154,1741792262406,-500.0,0.00023287,2]
[356005155,1741792262416,-500.0,0.00023287,2]
[356005156,1741792262425,-1982.34,0.00023287,2]
[356005157,1741792262435,-500.0,0.00023287,2]
[356005158,1741792262445,-613.23995308,0.00023287,2]
[356005159,1741792262454,-265.45454874,0.00023287,2]
[356005160,1741792262464,-500.0,0.00023287,2]
[356005161,1741792262474,-500.0,0.00023287,2]
[356005162,1741792262484,-271.1654744,0.00023287,2]
[356005163,1741792262493,-500.0,0.00023287,2]
[356005164,1741792262502,-500.0,0.00023287,2]
[356005165,1741792262511,-616.62,0.00023287,2]
[356005166,1741792262521,-500.0,0.00023287,2]
[356005167,1741792262531,-500.0,0.00023287,2]
[356005168,1741792262540,-730.05,0.00023287,2]
[356005169,1741792262550,-500.0,0.00023287,2]
[356005170,1741792262560,-628.32,0.00023287,2]
[356005171,1741792262570,-500.0,0.00023287,2]
[356005172,1741792262579,-500.0,0.00023287,2]
[356005173,1741792262589,-1232.1,0.00023287,2]
[356005174,1741792262601,-500.0,0.00023287,2]
[356005175,1741792262612,-1096.39,0.00023287,2]
[356005176,1741792262622,-500.0,0.00023287,2]
[356005177,1741792262632,-500.0,0.00023287,2]
[356005178,1741792262642,-500.0,0.00023287,2]
[356005179,1741792262652,-500.0,0.00023287,2]
[356005180,1741792262662,-500.0,0.00023287,2]
[356005181,1741792262673,-500.0,0.00023287,2]
[356005182,1741792262683,-500.0,0.00023287,2]
[356005183,1741792262692,-500.0,0.00023287,2]
[356005184,1741792262702,-500.0,0.00023287,2]
[356005185,1741792262712,-500.0,0.00023287,2]
[356005186,1741792262722,-500.0,0.00023287,2]
[356005187,1741792262732,-1794.98,0.00023287,2]
[356005188,1741792262742,-546.24,0.00023287,2]
[356005189,1741792262753,-500.0,0.00023287,2]
[356005190,1741792262765,-1009.6,0.00023287,2]
[356005191,1741792262775,-500.0,0.00023287,2]
[356005192,1741792262785,-1581.81,0.00023287,2]
[356005193,1741792262795,-500.0,0.00023287,2]
[356005194,1741792262805,-500.0,0.00023287,2]
[356005195,1741792262815,-952.89,0.00023287,2]
[356005196,1741792262825,-500.0,0.00023287,2]
[356005197,1741792262836,-505.55,0.00023287,2]
[356005198,1741792262848,-366.96136303,0.00023287,2]
[356005199,1741792262858,-500.0,0.00023287,2]
[356005200,1741792262867,-548.05,0.00023287,2]
[356005201,1741792262877,-720.36,0.00023287,2]
[356005202,1741792262887,-500.0,0.00023287,2]
[356005203,1741792262897,-500.0,0.00023287,2]
[356005204,1741792262907,-629.81951769,0.00023287,2]
[356005205,1741792262917,-500.0,0.00023287,2]
[356005206,1741792262927,-500.0,0.00023287,2]
[356005207,1741792262937,-500.0,0.00023287,2]
[356005208,1741792262946,-500.0,0.00023287,2]
[356005209,1741792262956,-961.42,0.00023287,2]
[356005210,1741792262965,-500.0,0.00023287,2]
[356005211,1741792262981,-517.63,0.00023287,2]
[356005212,1741792263002,-548.94960521,0.00023287,2]
[356005213,1741792263021,-152.32652221,0.00023287,2]
[356005214,1741792263033,-805.22,0.00023287,2]
[356005215,1741792263046,-500.0,0.00023287,2]
[356005216,1741792263055,-500.0,0.00023287,2]
[356005217,1741792263066,-513.17707068,0.00023287,2]
[356005218,1741792263076,-748.27,0.00023287,2]
[356005219,1741792263086,-500.0,0.00023287,2]
[356005220,1741792263098,-1222.12,0.00023287,2]
[356005221,1741792263108,-500.0,0.00023287,2]
[356005222,1741792263119,-1516.93,0.00023287,2]
[356005223,1741792263129,-500.0,0.00023287,2]
[356005224,1741792263140,-592.55,0.00023287,2]
[356005225,1741792263150,-500.0,0.00023287,2]
[356005226,1741792263159,-1250.76,0.00023287,2]
[356005227,1741792263169,-2217.0,0.00023287,2]
[356005228,1741792263185,-500.0,0.00023287,2]
[356005229,1741792263195,-649.76,0.00023287,2]
[356005230,1741792263205,-500.0,0.00023287,2]
[356005231,1741792263214,-1047.2,0.00023287,2]
[356005232,1741792263223,-628.34896336,0.00023287,2]
[356005233,1741792263233,-500.0,0.00023287,2]
[356005234,1741792263243,-500.0,0.00023287,2]
[356005235,1741792263254,-641.9898622,0.00023287,2]
[356005236,1741792263263,-1754.51,0.00023287,2]
[356005237,1741792263273,-500.0,0.00023287,2]
[356005238,1741792263283,-500.0,0.00023287,2]
[356005239,1741792263293,-500.0,0.00023287,2]
[356005240,1741792263303,-340.34056016,0.00023287,2]
[356005241,1741792263312,-500.0,0.00023287,2]
[356005242,1741792263322,-1167.74,0.00023287,2]
[356005243,1741792263332,-500.0,0.00023287,2]
[356005244,1741792263344,-848.2,0.00023287,2]
[356005245,1741792263354,-500.0,0.00023287,2]
[356005246,1741792263364,-500.0,0.00023287,2]
[356005247,1741792263375,-500.0,0.00023287,2]
[356005248,1741792263385,-500.0,0.00023287,2]
[356005249,1741792263395,-500.0,0.00023287,2]
[356005250,1741792263405,-500.0,0.00023287,2]
[356005251,1741792263415,-1256.66,0.00023287,2]
[356005252,1741792263425,-500.0,0.00023287,2]
[356005253,1741792263435,-1791.25,0.00023287,2]
[356005254,1741792263445,-968.83,0.00023287,2]
[356005255,1741792263455,-500.0,0.00023287,2]
[356005256,1741792263465,-500.0,0.00023287,2]
[356005257,1741792263474,-970.37,0.00023287,2]
[356005258,1741792263483,-500.0,0.00023287,2]
[356005259,1741792263491,-543.68,0.00023287,2]
[356005260,1741792263501,-500.0,0.00023287,2]
[356005261,1741792263510,-578.52,0.00023287,5]
[356005262,1741792263520,-665.39,0.00023287,2]
[356005263,1741792263530,-500.0,0.00023287,2]
[356005264,1741792263539,-500.0,0.00023287,2]
[356005265,1741792263550,-500.49,0.00023287,2]
[356005266,1741792263561,-500.0,0.00023287,2]
[356005267,1741792263572,-500.0,0.00023287,2]
[356005268,1741792263583,-1310.88,0.00023287,2]
[356005269,1741792263597,-500.0,0.00023287,2]
[356005270,1741792263609,-689.9,0.00023287,2]
[356005271,1741792263619,-570.59,0.00023287,2]
[356005272,1741792263630,-481.93148833,0.00023287,2]
[356005273,1741792263641,-500.0,0.00023287,2]
[356005274,1741792263651,-532.26833623,0.00023287,2]
[356005275,1741792263663,-500.0,0.00023287,2]
[356005276,1741792263673,-1019.17,0.00023287,2]
[356005277,1741792263684,-1095.79,0.00023287,2]
[356005278,1741792263695,-500.0,0.00023287,2]
[356005279,1741792263706,-2062.19,0.00023287,2]
[356005280,1741792263716,-515.17602348,0.00023287,2]
[356005281,1741792263820,-1431.16,0.00023287,2]
[356005282,1741792263830,-500.0,0.00023287,2]
[356005283,1741792263841,-913.6,0.00023287,2]
[356005284,1741792263856,-500.0,0.00023287,2]
[356005285,1741792263866,-500.0,0.00023287,2]
[356005286,1741792263876,-500.0,0.00023287,2]
[356005287,1741792263886,-500.0,0.00023287,2]
[356005288,1741792263896,-500.0,0.00023287,2]
[356005289,1741792263906,-1787.17,0.00023287,2]
[356005290,1741792263916,-825.75,0.00023287,2]
[356005291,1741792263926,-500.0,0.00023287,2]
[356005292,1741792263936,-500.0,0.00023287,2]
[356005293,1741792263946,-500.0,0.00023287,2]
[356005294,1741792263955,-516.68,0.00023287,2]
[356005295,1741792263965,-500.0,0.00023287,2]
[356005296,1741792263975,-1187.34,0.00023287,2]
[356005297,1741792263984,-500.0,0.00023287,2]
[356005298,1741792263994,-500.0,0.00023287,2]
[356005299,1741792264005,-729.37,0.00023287,2]
[356005300,1741792264014,-1008.35,0.00023287,2]
[356005301,1741792264024,-969.36,0.00023287,2]
[356005302,1741792264034,-500.0,0.00023287,2]
[356005303,1741792264043,-500.0,0.00023287,2]
[356005304,1741792264054,-1564.59,0.00023287,2]
[356005305,1741792264064,-500.0,0.00023287,2]
[356005306,1741792264074,-693.24,0.00023287,2]
[356005307,1741792264085,-500.0,0.00023287,2]
[356005308,1741792264103,-1314.1,0.00023287,2]
[356005309,1741792264114,-1096.4,0.00023287,2]
[356005310,1741792264126,-500.0,0.00023287,2]
[356005311,1741792264137,-500.0,0.00023287,2]
[356005312,1741792264149,-500.0,0.00023287,2]
[356005313,1741792264160,-1528.25,0.00023287,2]
[356005314,1741792264171,-1303.06,0.00023287,2]
[356005315,1741792264182,-500.0,0.00023287,2]
[356005316,1741792264192,-500.0,0.00023287,2]
[356005317,1741792264203,-500.0,0.00023287,2]
[356005318,1741792264214,-568.06,0.00023287,2]
[356005319,1741792264224,-500.0,0.00023287,2]
[356005320,1741792264235,-2094.41,0.00023287,2]
[356005321,1741792264245,-1765.23,0.00023287,2]
[356005322,1741792264255,-1840.33,0.00023287,2]
[356005323,1741792264265,-500.0,0.00023287,2]
[356005324,1741792264275,-500.0,0.00023287,2]
[356005325,1741792264286,-1707.8,0.00023287,2]
[356005326,1741792264296,-16255.04753876,0.00023287,2]
[356005327,1741792264331,-1193.13246124,0.00023287,2]
[356005328,1741792264342,-500.0,0.00023287,2]
[356005329,1741792264359,-206.37808341,0.00023287,2]
[356005330,1741792264372,-293.62191659,0.00023287,2]
[356005331,1741792264382,-500.0,0.00023287,2]
[356005332,1741792264392,-871.73,0.00023287,2]
[356005333,1741792264402,-500.0,0.00023287,2]
[356005334,1741792264413,-2717.87416405,0.00023287,2]
[356005335,1741792330040,602.94,0.00010959,2]
[356005336,1741792936442,24900.0,0.00015355,2]
[356005337,1741793049155,569.017349,0.0001,30]
[356005338,1741793160240,403.51,0.00010959,2]
[356005339,1741793170399,250.0,0.00015332,2]
[356005340,1741793171161,336.25,0.00010959,2]
[356005341,1741793192561,280.21,0.00010959,2]
[356005342,1741793203433,233.51,0.00010959,2]
[356005343,1741793214442,194.59,0.00010959,2]
[356005344,1741793225206,162.16,0.00010959,2]
[356005345,1741793236191,810.83,0.00010959,2]
[356005358,1741793381627,294.69,0.00010959,2]
[356005376,1741793432683,-2747.72188502,0.00016255,2]
[356005377,1741793432693,-4126.3070142,0.00016256,5]
[356005378,1741793432703,-325.71584454,0.00016273,2]
[356005379,1741793432713,-172.38,0.0001634,2]
[356005380,1741793432725,-172.38,0.0001634,2]
[356005381,1741793432735,-172.38,0.00016346,2]
[356005382,1741793432744,-600.0,0.00016347,2]
[356005383,1741793432754,-300.0,0.00016349,2]
[356005384,1741793432763,-500.0,0.0001635,2]
[356005385,1741793432773,-500.0,0.0001635,2]
[356005386,1741793432783,-500.0,0.0001635,2]
[356005387,1741793432792,-500.0,0.0001635,2]
[356005388,1741793432801,-500.0,0.0001635,2]
[356005389,1741793432811,-500.0,0.0001635,2]
[356005390,1741793432820,-500.0,0.0001635,2]
[356005391,1741793432830,-500.0,0.0001635,2]
[356005392,1741793432839,-500.0,0.0001635,2]
[356005393,1741793432849,-500.0,0.0001635,2]
[356005394,1741793432858,-500.0,0.0001635,2]
[356005395,1741793432868,-500.0,0.0001635,2]
[356005396,1741793432878,-500.0,0.0001635,2]
[356005398,1741793432887,-500.0,0.0001635,2]
[356005401,1741793432897,-500.0,0.0001635,2]
[356005403,1741793432907,-277.54477857,0.0001635,2]
[356005405,1741793432916,-500.0,0.0001635,2]
[356005407,1741793432926,-500.0,0.0001635,2]
[356005409,1741793432935,-446.06757128,0.0001635,2]
[356005410,1741793432944,-500.0,0.0001635,2]
[356005413,1741793432954,-500.0,0.0001635,2]
[356005415,1741793432964,-500.0,0.0001635,2]
[356005417,1741793432975,-500.0,0.0001635,2]
[356005419,1741793432984,-500.0,0.0001635,2]
[356005421,1741793432994,-500.0,0.0001635,2]
[356005423,1741793433003,-500.0,0.0001635,2]
[356005425,1741793433013,-500.0,0.0001635,2]
[356005427,1741793433022,-500.0,0.0001635,2]
[356005428,1741793433033,-500.0,0.0001635,2]
[356005429,1741793433042,-500.0,0.0001635,2]
[356005430,1741793433051,-500.0,0.0001635,2]
[356005431,1741793433061,-500.0,0.0001635,2]
[356005432,1741793433070,-500.0,0.0001635,2]
[356005433,1741793433080,-500.0,0.0001635,2]
[356005434,1741793433089,-500.0,0.0001635,2]
[356005435,1741793433098,-500.0,0.0001635,2]
[356005436,1741793433111,-500.0,0.0001635,2]
[356005437,1741793433122,-500.0,0.0001635,2]
[356005438,1741793433131,-500.0,0.0001635,2]
[356005439,1741793433141,-500.0,0.0001635,2]
[356005440,1741793433151,-500.0,0.0001635,2]
[356005441,1741793433161,-500.0,0.0001635,2]
[356005442,1741793433171,-500.0,0.0001635,2]
[356005443,1741793433182,-500.0,0.0001635,2]
[356005444,1741793433193,-500.0,0.0001635,2]
[356005445,1741793433202,-500.0,0.0001635,2]
[356005446,1741793433212,-500.0,0.0001635,2]
[356005447,1741793433223,-500.0,0.0001635,2]
[356005448,1741793433232,-307.04926419,0.0001635,2]
[356005449,1741793433242,-500.0,0.0001635,2]
[356005450,1741793433251,-500.0,0.0001635,2]
[356005451,1741793433261,-500.0,0.0001635,2]
[356005452,1741793433270,-500.0,0.0001635,2]
[356005453,1741793433280,-500.0,0.0001635,2]
[356005454,1741793433289,-500.0,0.0001635,2]
[356005455,1741793433299,-500.0,0.0001635,2]
[356005456,1741793433308,-500.0,0.0001635,2]
[356005457,1741793433317,-500.0,0.0001635,2]
[356005458,1741793433327,-500.0,0.0001635,2]
[356005459,1741793433336,-500.0,0.0001635,2]
[356005460,1741793433346,-500.0,0.0001635,2]
[356005461,1741793433356,-500.0,0.0001635,2]
[356005462,1741793433366,-500.0,0.0001635,2]
[356005463,1741793433376,-500.0,0.0001635,2]
[356005464,1741793433386,-500.0,0.0001635,2]
[356005465,1741793433395,-500.0,0.0001635,2]
[356005466,1741793433405,-500.0,0.0001635,2]
[356005467,1741793433415,-500.0,0.0001635,2]
[356005468,1741793433425,-500.0,0.0001635,2]
[356005469,1741793433435,-500.0,0.0001635,2]
[356005470,1741793433444,-500.0,0.0001635,2]
[356005471,1741793433454,-500.0,0.0001635,2]
[356005472,1741793433464,-500.0,0.0001635,2]
[356005473,1741793433474,-500.0,0.0001635,2]
[356005474,1741793433484,-500.0,0.0001635,2]
[356005475,1741793433494,-500.0,0.0001635,2]
[356005476,1741793433504,-500.0,0.0001635,2]
[356005477,1741793433513,-500.0,0.0001635,2]
[356005478,1741793433524,-500.0,0.0001635,2]
[356005479,1741793433533,-395.0,0.0001635,2]
[356005480,1741793433689,-155.00000001,0.0001635,2]
[356005481,1741793433699,-613.60997402,0.00016351,2]
[356005482,1741793433710,-607.0462367,0.00016356,2]
[356005483,1741793433721,-260.16267287,0.00016356,2]
[356005484,1741793433731,-319.6173041,0.00016356,2]
[356005485,1741793433740,-500.0,0.00016356,2]
[356005486,1741793433750,-318.83510974,0.00016356,2]
[356005487,1741793433760,-500.0,0.00016356,2]
[356005488,1741793433770,-181.43195663,0.00016356,2]
[356005489,1741793433780,-1000.0,0.00016356,2]
[356005490,1741793433789,-836.82785605,0.00016356,2]
[356005491,1741793433798,-654.38089953,0.00016356,2]
[356005492,1741793433808,-95073.04275924,0.00016357,2]
[356005498,1741793438438,-126926.95724076,0.00016357,2]
[356005499,1741793438447,-500.0,0.00016373,2]
[356005500,1741793438457,-500.0,0.00016373,2]
[356005501,1741793438467,-500.0,0.00016373,2]
[356005502,1741793438478,-500.0,0.00016373,2]
[356005503,1741793438488,-435.74529556,0.00016373,2]
[356005504,1741793438497,-500.0,0.00016373,2]
[356005505,1741793438507,-500.0,0.00016373,2]
[356005506,1741793438516,-500.0,0.00016373,2]
[356005507,1741793438526,-500.0,0.00016373,2]
[356005508,1741793438535,-500.0,0.00016373,2]
[356005509,1741793438545,-153.05187386,0.00016373,2]
[356005510,1741793438554,-500.0,0.00016373,2]
[356005511,1741793438564,-430.64056415,0.00016373,2]
[356005512,1741793438573,-500.0,0.00016373,2]
[356005513,1741793438583,-160.44110102,0.00016373,2]
[356005514,1741793438592,-474.54793428,0.00016373,2]
[356005515,1741793438602,-150.0153801,0.00016373,2]
[356005516,1741793438612,-500.0,0.00016373,2]
[356005518,1741793438621,-500.0,0.00016373,2]
[356005519,1741793438631,-291.01744619,0.00016373,2]
[356005520,1741793438640,-500.0,0.00016373,2]
[356005521,1741793438650,-500.0,0.00016373,2]
[356005522,1741793438811,-563.27790131,0.00016373,2]
[356005523,1741793438822,-500.0,0.00016373,2]
[356005524,1741793438831,-500.0,0.00016373,2]
[356005525,1741793438840,-500.0,0.00016373,2]
[356005526,1741793438850,-500.0,0.00016373,2]
[356005527,1741793438860,-500.0,0.00016373,2]
[356005528,1741793438869,-500.0,0.00016373,2]
[356005529,1741793438879,-362.34295187,0.00016373,2]
[356005530,1741793438888,-210.53117513,0.00016373,2]
[356005531,1741793438898,-500.0,0.00016373,2]
[356005532,1741793438907,-500.0,0.00016373,2]
[356005533,1741793438916,-502.97438894,0.00016373,2]
[356005534,1741793438926,-500.0,0.00016373,2]
[356005535,1741793438936,-500.0,0.00016373,2]
[356005536,1741793438946,-500.0,0.00016373,2]
[356005537,1741793438956,-500.0,0.00016373,2]
[356005538,1741793438965,-500.0,0.00016373,2]
[356005539,1741793438975,-500.0,0.00016373,2]
[356005540,1741793438985,-1000.0,0.0001638,2]
[356005541,1741793438995,-152.0,0.00016381,2]
[356005542,1741793439004,-151.0,0.000164,2]
[356005543,1741793439014,-622.2,0.00016402,2]
[356005544,1741793439024,-150.0,0.00016419,3]
[356005545,1741793439033,-251.0,0.00016419,3]
[356005546,1741793439043,-501.0,0.00016419,3]
[356005547,1741793439052,-1002.0,0.00016419,3]
[356005548,1741793439062,-2005.0,0.00016419,3]
[356005549,1741793439071,-4010.0,0.00016419,3]
[356005550,1741793439081,-8019.0,0.00016419,3]